fUST/lending_fUST_20240927
["ID","MTS","AMOUNT","RATE_DAILY","PERIOD"]
[339224471,1727373035421,-618.49629895,0.00015159,2]
[339224472,1727373035431,-618.49629895,0.00015159,2]
[339224473,1727373035442,-618.49629895,0.00015159,2]
[339224474,1727373035453,-618.49629895,0.00015159,2]
[339224475,1727373035463,-618.49629895,0.00015159,2]
[339224476,1727373035473,-618.49629895,0.00015159,2]
[339224477,1727373035482,-618.49629895,0.00015159,2]
[339224478,1727373035492,-618.49629895,0.00015159,2]
[339224479,1727373035501,-618.49629895,0.00015159,2]
[339224480,1727373035511,-618.49629895,0.00015159,2]
[339224481,1727373035521,-618.49629895,0.00015159,2]
[339224482,1727373035530,-618.49629895,0.00015159,2]
[339224483,1727373035540,-618.49629895,0.00015159,2]
[339224484,1727373035550,-618.49629895,0.00015159,2]
[339224485,1727373035562,-618.49629895,0.00015159,2]
[339224486,1727373035571,-618.49629895,0.00015159,2]
[339224487,1727373035581,-618.49629895,0.00015159,2]
[339224488,1727373035591,-618.49629895,0.00015159,2]
[339224489,1727373035600,-618.49629895,0.00015159,2]
[339224490,1727373035610,-618.49629895,0.00015159,2]
[339224491,1727373035620,-618.49629895,0.00015159,2]
[339224492,1727373035630,-618.49629895,0.00015159,2]
[339224493,1727373035640,-216.57323106,0.00015159,2]
[339224494,1727373035650,-44916.20944325,0.00015161,2]
[339224503,1727373038492,-618.49629895,0.00015159,2]
[339224504,1727373038501,-381.50370105,0.00015159,2]
[339224511,1727373040072,-236.9925979,0.00015159,2]
[339224512,1727373040083,-618.49629895,0.00015159,2]
[339224513,1727373040093,-618.49629895,0.00015159,2]
[339224514,1727373040102,-618.49629895,0.00015159,2]
[339224515,1727373040112,-618.49629895,0.00015159,2]
[339224516,1727373040122,-618.49629895,0.00015159,2]
[339224517,1727373040132,-618.49629895,0.00015159,2]
[339224518,1727373040142,-618.49629895,0.00015159,2]
[339224519,1727373040151,-618.49629895,0.00015159,2]
[339224520,1727373040161,-618.49629895,0.00015159,2]
[339224521,1727373040171,-618.49629895,0.00015159,2]
[339224522,1727373040181,-618.49629895,0.00015159,2]
[339224523,1727373040190,-618.49629895,0.00015159,2]
[339224524,1727373040200,-618.49629895,0.00015159,2]
[339224525,1727373040211,-618.49629895,0.00015159,2]
[339224526,1727373040222,-618.49629895,0.00015159,2]
[339224527,1727373040233,-618.49629895,0.00015159,2]
[339224528,1727373040243,-618.49629895,0.00015159,2]
[339224529,1727373040254,-618.49629895,0.00015159,2]
[339224530,1727373040265,-69197.08887675,0.00015161,2]
[339224531,1727373040275,-13003.0524086,0.00015161,2]
[339224532,1727373040285,-2267.07483095,0.00015162,2]
[339224533,1727373040296,-2840.05598012,0.00015162,2]
[339224534,1727373040308,-171169.94748,0.00015163,2]
[339224535,1727373040319,-19504.578613,0.00015163,2]
[339224536,1727373040333,-500.0,0.00015173,2]
[339224537,1727373040344,-502.46159448,0.00015173,2]
[339224538,1727373040356,-500.0,0.00015173,2]
[339224539,1727373040366,-500.0,0.00015173,2]
[339224540,1727373040375,-500.0,0.00015173,2]
[339224541,1727373040384,-500.0,0.00015173,2]
[339224542,1727373040394,-500.0,0.00015173,2]
[339224543,1727373040403,-500.0,0.00015173,2]
[339224544,1727373040413,-500.78881432,0.00015173,2]
[339224545,1727373040424,-166.666666,0.00015421,2]
[339224546,1727373040434,-501.2880644,0.00015721,2]
[339224547,1727373040447,-1125.10540032,0.00015721,2]
[339224548,1727373040458,-500.0,0.00015721,2]
[339224549,1727373040468,-166.666666,0.00015774,2]
[339224550,1727373040478,-150.0,0.00016,2]
[339224551,1727373040488,-166.666666,0.00016126,2]
[339224552,1727373040499,-500.0,0.00016164,2]
[339224553,1727373040508,-166.666666,0.00016479,2]
[339224554,1727373040518,-420.0,0.00016493,2]
[339224555,1727373040527,-57056.6491599,0.00016572,2]
[339224556,1727373040537,-6501.52620432,0.00016572,2]
[339224557,1727373040546,-500.0,0.00016573,2]
[339224558,1727373040555,-500.0,0.00016573,2]
[339224559,1727373040564,-500.0,0.00016573,2]
[339224560,1727373040575,-420.0,0.00016578,2]
[339224561,1727373040584,-151.0,0.00016582,2]
[339224562,1727373040594,-151.0,0.00016582,2]
[339224563,1727373040604,-198.631228,0.00016582,2]
[339224564,1727373040614,-198.631228,0.00016582,2]
[339224565,1727373040624,-151.0,0.00016582,2]
[339224566,1727373040634,-151.0,0.00016582,2]
[339224567,1727373040644,-151.0,0.00016582,2]
[339224568,1727373040653,-500.0,0.000167,2]
[339224569,1727373040663,-166.666666,0.00016832,2]
[339224570,1727373040673,-1049.04192041,0.00017121,2]
[339224571,1727373040682,-366.35752811,0.00017121,2]
[339224572,1727373040694,-500.0,0.00017121,2]
[339224573,1727373040710,-151.0,0.00017121,2]
[339224574,1727373040720,-207.287527,0.00017121,2]
[339224575,1727373040731,-207.287527,0.00017121,2]
[339224576,1727373040742,-593.319675,0.00017121,2]
[339224577,1727373040754,-593.319675,0.00017121,2]
[339224578,1727373040900,-151.870809,0.00017221,2]
[339224579,1727373040911,-151.0,0.00017221,2]
[339224580,1727373040921,-151.0,0.00017221,2]
[339224581,1727373040931,-151.0,0.00017221,2]
[339224582,1727373040943,-151.0,0.00017221,2]
[339224583,1727373040952,-281.366768,0.00017221,2]
[339224584,1727373040963,-281.366768,0.00017221,2]
[339224585,1727373040972,-151.0,0.00017221,2]
[339224586,1727373040981,-371.194741,0.00017221,2]
[339224587,1727373040990,-371.194741,0.00017221,2]
[339224588,1727373041000,-151.0,0.00017221,2]
[339224589,1727373041009,-156.381959,0.00017221,2]
[339224590,1727373041019,-156.381959,0.00017221,2]
[339224591,1727373041029,-151.0,0.00017221,2]
[339224592,1727373041039,-383.419228,0.00017221,2]
[339224593,1727373041050,-383.419228,0.00017221,2]
[339224594,1727373041059,-366.67751789,0.00017522,2]
[339224595,1727373041069,-6501.52620432,0.0001757,2]
[339224596,1727373041079,-1000.0,0.0001758,2]
[339224597,1727373041088,-1000.0,0.0001758,2]
[339224598,1727373041098,-1000.0,0.0001758,2]
[339224599,1727373041109,-1000.0,0.0001758,2]
[339224600,1727373041119,-1000.0,0.0001758,2]
[339224601,1727373041129,-1000.0,0.0001758,2]
[339224602,1727373041137,-1000.0,0.0001758,2]
[339224603,1727373041146,-1000.0,0.0001758,2]
[339224604,1727373041155,-922.06203469,0.0001758,2]
[339224605,1727373041165,-874.91699905,0.0001764,2]
[339224606,1727373041174,-587.0,0.0001805,2]
[339224607,1727373041183,-160.0,0.00018075,3]
[339224608,1727373041195,-599.91,0.000181,2]
[339224609,1727373041204,-587.0,0.00018236,2]
[339224610,1727373041213,-1967.66270111,0.00018442,2]
[339224611,1727373041223,-7147.48486534,0.00018497,2]
[339224612,1727373041233,-6501.52620432,0.00018522,2]
[339224613,1727373041243,-485.49584995,0.00018522,2]
[339224614,1727373041255,-6501.52620432,0.00018532,2]
[339224615,1727373041266,-152.669542,0.00018532,2]
[339224616,1727373041275,-1171.29313557,0.00018532,2]
[339224645,1727373216530,2674.87514298,0.00014111,2]
[339224664,1727373871167,385.251902,0.00014092,2]
[339224681,1727374171491,24900.0,0.00014096,2]
[339224748,1727374232659,-385.251902,0.00014777,2]
[339224750,1727374232669,-639.88616618,0.00014958,2]
[339224882,1727374240365,-58.56318652,0.00014958,2]
[339224884,1727374240375,-166.666666,0.00015068,2]
[339224886,1727374240384,-2456.85551908,0.00015118,2]
[339224888,1727374240394,-650.15262054,0.00015118,2]
[339224890,1727374240413,-300.0,0.00015119,2]
[339224892,1727374240423,-300.0,0.00015119,2]
[339224894,1727374240432,-4913.71103816,0.0001512,2]
[339224896,1727374240442,-1300.30524108,0.0001512,2]
[339224898,1727374240451,-14741.1331145,0.0001512,2]
[339224900,1727374240461,-3900.91572324,0.0001512,2]
[339224902,1727374240471,-192.27183527,0.00015126,2]
[339224904,1727374240481,-500.0,0.00015126,2]
[339224906,1727374240491,-443.37284321,0.00015126,2]
[339224924,1727374240666,-1054.31852914,0.00015126,2]
[339224926,1727374240677,-1054.31852914,0.00015126,2]
[339224928,1727374240687,-500.0,0.00015126,2]
[339224930,1727374240697,-1054.31852914,0.00015126,2]
[339224932,1727374240707,-500.0,0.00015126,2]
[339224934,1727374240717,-1054.31852914,0.00015126,2]
[339224936,1727374240727,-576.71933835,0.00015126,2]
[339224938,1727374240738,-1054.31852914,0.00015126,2]
[339224940,1727374240748,-1054.31852914,0.00015126,2]
[339224942,1727374240757,-1054.31852914,0.00015126,2]
[339224944,1727374240767,-1054.31852914,0.00015126,2]
[339224946,1727374240778,-1054.31852914,0.00015126,2]
[339224948,1727374240788,-1054.31852914,0.00015126,2]
[339224950,1727374240798,-1054.31852914,0.00015126,2]
[339224952,1727374240807,-1054.31852914,0.00015126,2]
[339224954,1727374240817,-1054.31852914,0.00015126,2]
[339224956,1727374240827,-1054.31852914,0.00015126,2]
[339224958,1727374240837,-1054.31852914,0.00015126,2]
[339224960,1727374240846,-1054.31852914,0.00015126,2]
[339224963,1727374240865,-1054.31852914,0.00015126,2]
[339224966,1727374240875,-1054.31852914,0.00015126,2]
[339224967,1727374240886,-1054.31852914,0.00015126,2]
[339224968,1727374240898,-1054.31852914,0.00015126,2]
[339224970,1727374240910,-1054.31852914,0.00015126,2]
[339224971,1727374240921,-1054.31852914,0.00015126,2]
[339224972,1727374240932,-1054.31852914,0.00015126,2]
[339224973,1727374240943,-1054.31852914,0.00015126,2]
[339224974,1727374240953,-1054.31852914,0.00015126,2]
[339224975,1727374240963,-1054.31852914,0.00015126,2]
[339224976,1727374240973,-1054.31852914,0.00015126,2]
[339224977,1727374240984,-1054.31852914,0.00015126,2]
[339224978,1727374240993,-1054.31852914,0.00015126,2]
[339224979,1727374241003,-1054.31852914,0.00015126,2]
[339224980,1727374241013,-1054.31852914,0.00015126,2]
[339224981,1727374241023,-1054.31852914,0.00015126,2]
[339224982,1727374241034,-1054.31852914,0.00015126,2]
[339224983,1727374241044,-1054.31852914,0.00015126,2]
[339224984,1727374241054,-1054.31852914,0.00015126,2]
[339224985,1727374241064,-1054.31852914,0.00015126,2]
[339224986,1727374241074,-1054.31852914,0.00015126,2]
[339224987,1727374241084,-1054.31852914,0.00015126,2]
[339224988,1727374241094,-1054.31852914,0.00015126,2]
[339224989,1727374241104,-1054.31852914,0.00015126,2]
[339224990,1727374241117,-1054.31852914,0.00015126,2]
[339224991,1727374241127,-1054.31852914,0.00015126,2]
[339224992,1727374241137,-1054.31852914,0.00015126,2]
[339224993,1727374241147,-1054.31852914,0.00015126,2]
[339224994,1727374241157,-1054.31852914,0.00015126,2]
[339224995,1727374241166,-1054.31852914,0.00015126,2]
[339224996,1727374241176,-1054.31852914,0.00015126,2]
[339224997,1727374241185,-1054.31852914,0.00015126,2]
[339224998,1727374241195,-216.57323107,0.00015127,2]
[339224999,1727374241206,-7370.56655724,0.0001513,2]
[339225000,1727374241216,-1950.45786162,0.0001513,2]
[339225001,1727374241226,-2000.0,0.0001514,2]
[339225002,1727374241238,-2000.0,0.0001514,2]
[339225003,1727374241248,-2000.0,0.0001514,2]
[339225004,1727374241257,-2000.0,0.0001514,2]
[339225005,1727374241266,-2000.0,0.0001514,2]
[339225006,1727374241275,-2000.0,0.0001514,2]
[339225007,1727374241284,-2000.0,0.0001514,2]
[339225008,1727374241293,-2000.0,0.0001514,2]
[339225009,1727374241303,-2000.0,0.0001514,2]
[339225010,1727374241312,-2000.0,0.0001514,2]
[339225011,1727374241322,-151.0,0.0001514,2]
[339225012,1727374241331,-151.0,0.0001514,2]
[339225013,1727374241340,-151.0,0.0001514,2]
[339225014,1727374241351,-151.0,0.0001514,2]
[339225015,1727374241360,-371.194741,0.0001514,2]
[339225016,1727374241370,-151.0,0.0001514,2]
[339225017,1727374241379,-371.194741,0.0001514,2]
[339225018,1727374241388,-151.0,0.0001514,2]
[339225019,1727374241399,-151.0,0.0001514,2]
[339225020,1727374241409,-485.492217,0.0001514,2]
[339225021,1727374241418,-485.492217,0.0001514,2]
[339225022,1727374241428,-593.319675,0.0001514,2]
[339225023,1727374241440,-593.319675,0.0001514,2]
[339225024,1727374241451,-151.0,0.0001514,2]
[339225025,1727374241460,-151.0,0.0001514,2]
[339225026,1727374241469,-151.0,0.0001514,2]
[339225027,1727374241482,-383.419228,0.0001514,2]
[339225028,1727374241492,-383.419228,0.0001514,2]
[339225029,1727374241502,-2000.0,0.00015149,2]
[339225030,1727374241511,-2000.0,0.00015149,2]
[339225031,1727374241521,-2000.0,0.00015149,2]
[339225032,1727374241531,-2456.85551908,0.00015152,2]
[339225033,1727374241541,-650.15262054,0.00015152,2]
[339225034,1727374241551,-4913.71103816,0.00015152,2]
[339225035,1727374241561,-1300.30524108,0.00015152,2]
[339225036,1727374241571,-2000.0,0.00015159,2]
[339225037,1727374241583,-2000.0,0.00015161,2]
[339225038,1727374241593,-151.0,0.00015162,2]
[339225039,1727374241603,-151.0,0.00015162,2]
[339225040,1727374241613,-2000.0,0.00015162,2]
[339225041,1727374241625,-2000.0,0.00015162,2]
[339225042,1727374241634,-2000.0,0.00015162,2]
[339225043,1727374241644,-2019.308315,0.00015162,2]
[339225044,1727374241655,-151.0,0.00015162,2]
[339225045,1727374241666,-152.669542,0.00015162,2]
[339225046,1727374241676,-371.194741,0.00015162,2]
[339225047,1727374241686,-371.194741,0.00015162,2]
[339225048,1727374241696,-151.0,0.00015162,2]
[339225049,1727374241706,-151.0,0.00015162,2]
[339225050,1727374241715,-151.0,0.00015162,2]
[339225051,1727374241726,-485.492217,0.00015162,2]
[339225052,1727374241736,-485.492217,0.00015162,2]
[339225053,1727374241746,-593.319675,0.00015162,2]
[339225054,1727374241755,-593.319675,0.00015162,2]
[339225055,1727374241766,-151.0,0.00015162,2]
[339225056,1727374241775,-151.0,0.00015162,2]
[339225057,1727374241785,-209.41744,0.00015162,2]
[339225058,1727374241794,-383.419228,0.00015162,2]
[339225059,1727374241804,-383.419228,0.00015162,2]
[339225060,1727374241813,-2456.85551908,0.00015162,2]
[339225061,1727374241824,-650.15262054,0.00015162,2]
[339225062,1727374241834,-1000.0,0.00015172,2]
[339225063,1727374241844,-1000.0,0.00015172,2]
[339225064,1727374241854,-1000.0,0.00015172,2]
[339225065,1727374241863,-1000.0,0.00015172,2]
[339225066,1727374241873,-1000.0,0.00015172,2]
[339225067,1727374241883,-1000.0,0.00015172,2]
[339225068,1727374241892,-1000.0,0.00015172,2]
[339225069,1727374241904,-1000.0,0.00015172,2]
[339225070,1727374241914,-922.06203469,0.00015172,2]
[339225071,1727374241923,-500.0,0.00015172,2]
[339225072,1727374241938,-502.46159448,0.00015173,2]
[339225073,1727374241949,-500.0,0.00015173,2]
[339225074,1727374241958,-500.0,0.00015173,2]
[339225075,1727374241968,-500.0,0.00015173,2]
[339225076,1727374241977,-500.0,0.00015173,2]
[339225077,1727374241986,-500.0,0.00015173,2]
[339225078,1727374241996,-500.78881432,0.00015173,2]
[339225079,1727374242005,-500.0,0.00015173,2]
[339225080,1727374242015,-500.0,0.00015173,2]
[339225081,1727374242024,-2000.0,0.00015184,2]
[339225082,1727374242034,-1014.67680889,0.00015184,2]
[339225083,1727374242044,-166.666666,0.00015447,2]
[339225084,1727374242054,-385.251902,0.00015461,2]
[339225085,1727374242063,-600.0,0.00015607,2]
[339225086,1727374242073,-1125.10540032,0.00015721,2]
[339225087,1727374242082,-501.2880644,0.00015721,2]
[339225088,1727374242092,-1000.0,0.00015721,2]
[339225089,1727374242101,-166.666666,0.00015826,2]
[339225090,1727374242111,-500.0,0.00015994,2]
[339225091,1727374242121,-150.0,0.00016,2]
[339225092,1727374242130,-500.0,0.00016164,2]
[339225093,1727374242141,-166.666666,0.00016204,2]
[339225094,1727374242154,-420.0,0.00016545,2]
[339225095,1727374242163,-166.666666,0.00016583,2]
[339225096,1727374242173,-420.0,0.00016631,2]
[339225097,1727374242182,-500.0,0.00016722,2]
[339225098,1727374242191,-366.67751789,0.00016816,2]
[339225099,1727374242201,-166.666666,0.00016961,2]
[339225100,1727374242210,-155.171708,0.000178,2]
[339225101,1727374242220,-151.0,0.00017808,2]
[339225102,1727374242229,-164.315641,0.00017808,2]
[339225103,1727374242239,-1321.0,0.00017965,5]
[339225104,1727374242248,-587.0,0.00018105,2]
[339225105,1727374242257,-7147.48486534,0.00018162,2]
[339225106,1727374242266,-150.112233,0.000182,2]
[339225107,1727374242276,-151.00831979,0.00018288,2]
[339225108,1727374242286,-587.0,0.00018294,2]
[339225109,1727374242295,-2456.85551908,0.00018295,2]
[339225110,1727374242305,-650.15262054,0.00018295,2]
[339225111,1727374242314,-151.0,0.00018497,2]
[339225112,1727374242324,-599.91,0.000185,2]
[339225113,1727374242333,-150.112233,0.000186,2]
[339225114,1727374242343,-218.075,0.00018632,2]
[339225115,1727374242353,-2456.85551908,0.00018785,2]
[339225116,1727374242362,-650.15262054,0.00018785,2]
[339225117,1727374242372,-151.0,0.00018795,2]
[339225118,1727374242385,-151.0,0.00018795,2]
[339225119,1727374242395,-383.419228,0.00018795,2]
[339225120,1727374242406,-383.419228,0.00018795,2]
[339225121,1727374242415,-151.0,0.000188,2]
[339225122,1727374242424,-151.0,0.000188,2]
[339225123,1727374242434,-371.194741,0.000188,2]
[339225124,1727374242444,-371.194741,0.000188,2]
[339225125,1727374242454,-151.0,0.000188,2]
[339225126,1727374242463,-151.0,0.000188,2]
[339225127,1727374242473,-263.27608,0.000188,2]
[339225128,1727374242482,-485.492217,0.000188,2]
[339225129,1727374242491,-485.492217,0.000188,2]
[339225130,1727374242501,-593.319675,0.000188,2]
[339225131,1727374242512,-593.319675,0.000188,2]
[339225132,1727374242524,-5000.0,0.000188,2]
[339225133,1727374242536,-500.0,0.00018904,2]
[339225134,1727374242546,-17566.26422085,0.00019,3]
[339225135,1727374242555,-152.68017911,0.00019,2]
[339225136,1727374242565,-4913.71103816,0.00019004,3]
[339225137,1727374242574,-1300.30524108,0.00019004,3]
[339225138,1727374242584,-53079.011,0.00019014,2]
[339225139,1727374242594,-150.112233,0.000191,2]
[339225140,1727374242604,-153.0,0.00019123,2]
[339225141,1727374242614,-153.0,0.00019123,2]
[339225142,1727374242626,-153.0,0.00019123,2]
[339225143,1727374242635,-153.0,0.00019123,2]
[339225144,1727374242647,-153.0,0.00019123,2]
[339225145,1727374242657,-153.0,0.00019123,2]
[339225146,1727374242667,-153.0,0.00019123,2]
[339225147,1727374242677,-153.0,0.00019123,2]
[339225148,1727374242688,-173.899286,0.00019178,2]
[339225149,1727374242697,-445.3333304,0.00019178,4]
[339225150,1727374242709,-242.948856,0.00019178,2]
[339225151,1727374242719,-3204.998,0.00019261,2]
[339225152,1727374242730,-300.133,0.00019261,2]
[339225153,1727374242740,-873.89221296,0.00019282,2]
[339225154,1727374242749,-19871.34920418,0.000194,2]
[339225155,1727374242759,-151.0,0.000194,2]
[339225156,1727374242768,-466.0247925,0.00019448,2]
[339225157,1727374242777,-156.381959,0.00019495,2]
[339225158,1727374242787,-151.0,0.00019495,2]
[339225159,1727374242797,-153.513888,0.00019495,2]
[339225160,1727374242806,-151.0,0.00019495,2]
[339225161,1727374242815,-151.0,0.00019495,2]
[339225162,1727374242825,-151.0,0.00019495,2]
[339225163,1727374242835,-151.0,0.00019495,2]
[339225164,1727374242844,-151.0,0.00019495,2]
[339225165,1727374242855,-198.631228,0.00019495,2]
[339225166,1727374242864,-198.631228,0.00019495,2]
[339225167,1727374242874,-151.0,0.00019495,2]
[339225168,1727374242883,-151.870809,0.00019495,2]
[339225169,1727374242892,-151.0,0.00019495,2]
[339225170,1727374242903,-151.0,0.00019495,2]
[339225171,1727374242913,-151.0,0.00019495,2]
[339225172,1727374242922,-151.0,0.00019495,2]
[339225173,1727374242933,-151.0,0.00019495,2]
[339225174,1727374242942,-151.0,0.00019495,2]
[339225175,1727374242952,-268.64208,0.00019495,2]
[339225176,1727374242962,-151.0,0.00019495,2]
[339225177,1727374242971,-151.0,0.00019495,2]
[339225178,1727374242981,-151.0,0.00019495,2]
[339225179,1727374242991,-151.0,0.00019495,2]
[339225181,1727374243000,-207.287527,0.00019495,2]
[339225183,1727374243009,-207.287527,0.00019495,2]
[339225184,1727374243020,-151.0,0.00019495,2]
[339225185,1727374243031,-151.0,0.00019495,2]
[339225186,1727374243040,-151.0,0.00019495,2]
[339225187,1727374243052,-151.0,0.00019495,2]
[339225188,1727374243062,-151.0,0.00019495,2]
[339225189,1727374243071,-151.0,0.000195,2]
[339225190,1727374243081,-383.419228,0.000195,2]
[339225192,1727374243090,-383.419228,0.000195,2]
[339225194,1727374243099,-160.0,0.000195,4]
[339225196,1727374243109,-160.0,0.000195,5]
[339225197,1727374243119,-160.0,0.000195,5]
[339225199,1727374243128,-525.0,0.00019505,2]
[339225201,1727374243138,-151.0,0.0001975,2]
[339225203,1727374243148,-1000.0,0.00019774,2]
[339225204,1727374243157,-2158.82774869,0.000198,2]
[339225205,1727374243166,-823.0,0.00019813,2]
[339225206,1727374243175,-485.492217,0.00019823,2]
[339225207,1727374243185,-485.492217,0.00019823,2]
[339225208,1727374243194,-593.319675,0.00019823,2]
[339225209,1727374243203,-593.319675,0.00019823,2]
[339225210,1727374243212,-371.194741,0.00019824,2]
[339225211,1727374243222,-371.194741,0.00019824,2]
[339225212,1727374243231,-151.0,0.00019824,2]
[339225213,1727374243242,-542.60027455,0.00019842,2]
[339225214,1727374243252,-3000.0,0.000199,2]
[339225215,1727374243261,-1967.66270111,0.000199,2]
[339225216,1727374243270,-30604.74942102,0.000199,2]
[339225217,1727374243279,-500.0,0.00019973,2]
[339225218,1727374243289,-500.0,0.00019973,2]
[339225219,1727374243298,-500.0,0.00019973,2]
[339225220,1727374243309,-151.0,0.00019973,2]
[339225221,1727374243321,-151.0,0.00019973,2]
[339225222,1727374243330,-151.0,0.00019973,2]
[339225224,1727374243341,-151.0,0.00019973,2]
[339225225,1727374243351,-241.803058,0.00019973,2]
[339225226,1727374243361,-248.060011,0.00019973,2]
[339225227,1727374243371,-281.366768,0.00019973,2]
[339225228,1727374243380,-151.0,0.00019973,2]
[339225229,1727374243390,-151.0,0.00019973,2]
[339225230,1727374243401,-207.287527,0.00019973,2]
[339225231,1727374243410,-207.287527,0.00019973,2]
[339225232,1727374243420,-151.0,0.00019973,2]
[339225233,1727374243429,-213.013136,0.00019973,2]
[339225235,1727374243439,-151.0,0.00019973,2]
[339225236,1727374243449,-151.0,0.00019973,2]
[339225237,1727374243458,-151.0,0.0001998,2]
[339225238,1727374243468,-151.0,0.0001998,2]
[339225239,1727374243478,-151.0,0.0001998,2]
[339225240,1727374243487,-272.140624,0.0001998,2]
[339225241,1727374243496,-198.631228,0.0001998,2]
[339225242,1727374243506,-198.631228,0.0001998,2]
[339225243,1727374243515,-151.0,0.0001998,2]
[339225244,1727374243524,-151.0,0.0001998,2]
[339225245,1727374243533,-151.0,0.0001998,2]
[339225246,1727374243543,-156.381959,0.0001999,2]
[339225247,1727374243552,-151.0,0.0001999,2]
[339225248,1727374243561,-160.0,0.00019999,2]
[339225249,1727374243571,-1167.90284554,0.00019999,2]
[339225250,1727374243581,-2267.07483095,0.0002,2]
[339225251,1727374243590,-2840.05598012,0.0002,2]
[339225252,1727374243600,-43194.19805158,0.0002,2]
[339225264,1727374246429,-500.0,0.00019973,2]
[339225265,1727374246440,-65621.24512024,0.0002,2]
[339225266,1727374246450,-1293.67177865,0.0002,2]
[339225267,1727374246461,-210.132012,0.0002,30]
[339225268,1727374246472,-518.0,0.0002,2]
[339225269,1727374246484,-10103.9551353,0.0002,2]
[339225270,1727374246496,-4312.80256937,0.0002,2]
[339225271,1727374246505,-167069.05495909,0.0002,2]
[339225286,1727375306866,824.30143065,0.00012,7]
[339225334,1727375432787,-166.666666,0.00015068,2]
[339225335,1727375432798,-300.0,0.00015106,2]
[339225336,1727375432808,-300.0,0.00015106,2]
[339225337,1727375432818,-500.0,0.00015106,2]
[339225338,1727375432829,-560.82131098,0.00015106,2]
[339225339,1727375432840,-192.27183527,0.00015106,2]
[339225340,1727375432850,-500.0,0.00015106,2]
[339225341,1727375432860,-500.0,0.00015106,2]
[339225342,1727375432869,-354.33002091,0.00015106,2]
[339225343,1727375432879,-500.0,0.00015106,2]
[339225344,1727375432888,-216.57323107,0.00015107,2]
[339225345,1727375432898,-459.04658668,0.00015108,2]
[339225412,1727375440505,-443.37284321,0.00015106,2]
[339225413,1727375440515,-500.0,0.00015106,2]
[339225414,1727375440525,-1054.31852914,0.00015106,2]
[339225415,1727375440535,-500.0,0.00015106,2]
[339225416,1727375440545,-1054.31852914,0.00015106,2]
[339225417,1727375440556,-500.0,0.00015106,2]
[339225418,1727375440567,-1054.31852914,0.00015106,2]
[339225419,1727375440576,-1054.31852914,0.00015106,2]
[339225420,1727375440585,-576.71933835,0.00015106,2]
[339225421,1727375440595,-1054.31852914,0.00015106,2]
[339225422,1727375440605,-1054.31852914,0.00015106,2]
[339225423,1727375440614,-1054.31852914,0.00015106,2]
[339225424,1727375440624,-1054.31852914,0.00015106,2]
[339225425,1727375440633,-1054.31852914,0.00015106,2]
[339225426,1727375440643,-1054.31852914,0.00015106,2]
[339225427,1727375440652,-1054.31852914,0.00015106,2]
[339225428,1727375440662,-1054.31852914,0.00015106,2]
[339225429,1727375440672,-1054.31852914,0.00015106,2]
[339225430,1727375440684,-1054.31852914,0.00015106,2]
[339225431,1727375440695,-1054.31852914,0.00015106,2]
[339225432,1727375440704,-1054.31852914,0.00015106,2]
[339225433,1727375440713,-1054.31852914,0.00015106,2]
[339225434,1727375440725,-1054.31852914,0.00015106,2]
[339225435,1727375440735,-1054.31852914,0.00015106,2]
[339225436,1727375440744,-1054.31852914,0.00015106,2]
[339225437,1727375440754,-1054.31852914,0.00015106,2]
[339225438,1727375440764,-1054.31852914,0.00015106,2]
[339225439,1727375440774,-1054.31852914,0.00015106,2]
[339225440,1727375440783,-1054.31852914,0.00015106,2]
[339225441,1727375440792,-1054.31852914,0.00015106,2]
[339225442,1727375440803,-1054.31852914,0.00015106,2]
[339225443,1727375440812,-1054.31852914,0.00015106,2]
[339225444,1727375440821,-1054.31852914,0.00015106,2]